[Event "SVK Amateur-ch 2020"]
[Site "Topolcany"]
[Date "2020.07.13"]
[Round "6.9"]
[White "Verba, Vladimir"]
[Black "Moravcik, Rastislav"]
[Result "0-1"]
[ECO "C14"]
[WhiteElo "1767"]
[BlackElo "1916"]
[Annotator "ChessBase"]
[PlyCount "98"]
[EventDate "2020.07.10"]
[EventType "swiss"]
[EventCountry "SVK"]
[SourceTitle "playchess.com"]
[Source "ChessBase"]
[SourceQuality "1"]
[TimeControl "3600+30"]

1. e4 {[%emt 0:00:00]} e6 {[%emt 0:00:04]} 2. d4 {[%emt 0:00:00]} d5 {[%emt 0:00:14]} 3. Nc3 {[%emt 0:00:01]} Nf6 {[%emt 0:01:07]} 4. Bg5 {[%emt 0:01:27]} Be7 {[%emt 0:03:39]} 5. e5 {[%emt 0:01:12]} Nfd7 {[%emt 0:00:27]} 6. Bxe7 {[%emt 0:00:26]} Qxe7 {[%emt 0:00:46]} 7. f4 {[%emt 0:00:08]} a6 {[%emt 0:02:19]} 8. Nf3 {[%emt 0:01:09]} c5 {[%emt 0:06:10]} 9. dxc5 {[%emt 0:00:25]} Qxc5 {[%emt 0:02:38]} 10. Qd4 {[%emt 0:00:59]} Nc6 {[%emt 0:01:19]} 11. Qxc5 {[%emt 0:00:27]} Nxc5 {[%emt 0:00:14]} 12. Ne2 {[%emt 0:01:35]} b5 {[%emt 0:07:36]} 13. Ned4 {[%emt 0:03:14]} Bd7 {[%emt 0:03:50]} 14. Nxc6 {[%emt 0:03:42]} Bxc6 {[%emt 0:00:47]} 15. Nd4 {[%emt 0:00:18]} Bd7 {[%emt 0:02:24]} 16. Bd3 {[%emt 0:01:21]} O-O {[%emt 0:06:41]} 17. Ke2 {[%emt 0:02:01]} f6 {[%emt 0:03:16]} 18. exf6 {[%emt 0:02:29]} gxf6 {[%emt 0:02:35]} 19. b4 {[%emt 0:07:55]} Na4 {[%emt 0:08:01]} 20. Kd2 {[%emt 0:07:09]} e5 {[%emt 0:02:08]} 21. Bf5 {[%emt 0:02:28]} Bxf5 {[%emt 0:00:40]} 22. Nxf5 {[%emt 0:00:08]} Rad8 {[%emt 0:04:36]} 23. Rhf1 {[%emt 0:02:06]} Nb6 {[%emt 0:01:55]} 24. Rae1 {[%emt 0:03:11]} e4 {[%emt 0:01:42]} 25. Nd4 {[%emt 0:02:05]} Kf7 {[%emt 0:00:44]} 26. f5 {[%emt 0:00:49]} Rg8 {[%emt 0:00:48]} 27. g3 {[%emt 0:00:42]} Nc4+ {[%emt 0:00:37]} 28. Kc1 {[%emt 0:01:00]} Rc8 {[%emt 0:00:46]} 29. Ne6 {[%emt 0:07:54]} a5 {[%emt 0:03:35]} 30. Nd4 {[%emt 0:04:56]} axb4 {[%emt 0:00:22]} 31. Nxb5 {[%emt 0:03:16]} Ra8 {[%emt 0:00:36]} 32. Kb1 {[%emt 0:01:42]} Nd2+ {[%emt 0:00:42]} 33. Kb2 {[%emt 0:00:46]} Nxf1 {[%emt 0:00:12]} 34. Rxf1 {[%emt 0:00:16]} Rad8 {[%emt 0:00:59]} 35. Nd4 {[%emt 0:04:50]} h5 {[%emt 0:00:38]} 36. Ne6 {[%emt 0:02:34]} Rd6 {[%emt 0:00:47]} 37. Nd4 {[%emt 0:01:47]} h4 {[%emt 0:00:13]} 38. Rg1 {[%emt 0:00:37]} hxg3 {[%emt 0:00:07]} 39. hxg3 {[%emt 0:00:25]} Rh8 {[%emt 0:00:36]} 40. g4 {[%emt 0:00:39]} Rh2 {[%emt 0:00:21]} 41. Rg3 {[%emt 0:00:34]} Rd2 {[%emt 0:00:32]} 42. Nb3 {[%emt 0:00:50]} Rd1 {[%emt 0:00:07]} 43. g5 {[%emt 0:00:22]} fxg5 {[%emt 0:00:15]} 44. Rxg5 {[%emt 0:00:12]} d4 {[%emt 0:00:25]} 45. Nc5 {[%emt 0:00:37]} e3 {[%emt 0:00:27]} 46. Nd3 {[%emt 0:01:16]} e2 {[%emt 0:01:11]} 47. Ne5+ {[%emt 0:00:52]} Kf6 {[%emt 0:00:13]} 48. Nf3 {[%emt 0:00:11]} e1=Q {[%emt 0:01:27]} 49. Nxe1 {[%emt 0:00:17]} Kxg5 {[%emt 0:00:12]} 0-1

[Event "SVK Amateur-ch 2020"]
[Site "Topolcany"]
[Date "2020.07.13"]
[Round "6.10"]
[White "Varga, Milan"]
[Black "Belus, Benjamin"]
[Result "0-1"]
[ECO "B52"]
[WhiteElo "1839"]
[BlackElo "1909"]
[Annotator "ChessBase"]
[PlyCount "66"]
[EventDate "2020.07.10"]
[EventType "swiss"]
[EventCountry "SVK"]
[SourceTitle "playchess.com"]
[Source "ChessBase"]
[SourceQuality "1"]
[TimeControl "3600+30"]

1. e4 {[%emt 0:00:00]} c5 {[%emt 0:13:49]} 2. Nf3 {[%emt 0:02:11]} d6 {[%emt 0:00:02]} 3. c3 {[%emt 0:01:18]} Nf6 {[%emt 0:00:19]} 4. Bb5+ {[%emt 0:02:27]} Bd7 {[%emt 0:00:16]} 5. Bxd7+ {[%emt 0:00:37]} Qxd7 {[%emt 0:00:39]} 6. d3 {[%emt 0:01:56]} g6 {[%emt 0:00:08]} 7. Bg5 {[%emt 0:02:18]} Bg7 {[%emt 0:00:02]} 8. h3 {[%emt 0:01:00]} Nc6 {[%emt 0:00:37]} 9. Nbd2 {[%emt 0:02:45]} O-O {[%emt 0:00:13]} 10. Nf1 {[%emt 0:02:27]} b5 {[%emt 0:01:04]} 11. Qd2 {[%emt 0:05:24]} c4 {[%emt 0:08:05]} 12. Bxf6 {[%emt 0:02:55]} Bxf6 {[%emt 0:01:59]} 13. d4 {[%emt 0:00:21]} a5 {[%emt 0:00:22]} 14. Ne3 {[%emt 0:00:30]} e6 {[%emt 0:01:56]} 15. O-O {[%emt 0:02:09]} Bg7 {[%emt 0:00:40]} 16. Nh2 {[%emt 0:02:51]} f5 {[%emt 0:00:16]} 17. f3 {[%emt 0:01:36]} fxe4 {[%emt 0:00:34]} 18. fxe4 {[%emt 0:00:29]} Rxf1+ {[%emt 0:00:42]} 19. Rxf1 {[%emt 0:00:25]} Rf8 {[%emt 0:00:02]} 20. Rxf8+ {[%emt 0:04:06]} Bxf8 {[%emt 0:00:01]} 21. Neg4 {[%emt 0:01:01]} Bg7 {[%emt 0:00:17]} 22. Nf3 {[%emt 0:00:45]} Qc7 {[%emt 0:01:28]} 23. Qg5 {[%emt 0:01:01]} b4 {[%emt 0:00:36]} 24. Nf6+ {[%emt 0:00:36]} Bxf6 {[%emt 0:02:20]} 25. Qxf6 {[%emt 0:00:22]} Qe7 {[%emt 0:00:13]} 26. Qxe7 {[%emt 0:03:02]} Nxe7 {[%emt 0:00:02]} 27. Ng5 {[%emt 0:00:14]} e5 {[%emt 0:00:53]} 28. d5 {[%emt 0:00:18]} Nc8 {[%emt 0:00:41]} 29. Kf2 {[%emt 0:01:39]} Nb6 {[%emt 0:00:19]} 30. b3 {[%emt 0:10:39]} a4 {[%emt 0:09:12]} 31. bxc4 {[%emt 0:05:14]} b3 {[%emt 0:00:13]} 32. c5 {[%emt 0:01:09]} bxa2 {[%emt 0:00:33]} 33. cxb6 {[%emt 0:00:23]} a1=Q {[%emt 0:00:03]} 0-1

[Event "SVK Amateur-ch 2020"]
[Site "Topolcany"]
[Date "2020.07.13"]
[Round "6.11"]
[White "Mirowska, Oliwia"]
[Black "Rabovszky, Gyorgy"]
[Result "1-0"]
[ECO "B20"]
[WhiteElo "1898"]
[BlackElo "1716"]
[Annotator "NA"]
[PlyCount "53"]
[EventDate "2020.07.10"]
[EventType "swiss"]
[EventCountry "SVK"]
[SourceTitle "playchess.com"]
[Source "ChessBase"]
[SourceQuality "1"]
[TimeControl "3600+30"]

{[%evp 10,53,1,32767,32767,11,32767,31,57,47,51,53,97,113,103,55,78,112,79,0,32767,14,32767,32767,32767,106,107,107,183,187,282,32767,378,387,32767,529,1225,1296,1316,1583,1610,2004,32767,1146,29988,29990]} 1. e4 {[%emt 0:00:00]} c5 {[%emt 0:00:12]} 2. g3 {[%emt 0:00:14]} Nc6 {[%emt 0:00:17]} 3. Bg2 {[%emt 0:00:11]} d6 {[%emt 0:01:57]} 4. d3 {[%emt 0:00:58]} g6 {[%emt 0:00:59]} 5. f4 {[%emt 0:00:34]} Bg7 {[%emt 0:01:38]} 6. Nf3 {[%emt 0:00:37]} Bg4 {[%emt 0:03:36]} 7. c3 {[%emt 0:00:58]} Qc7 {[%emt 0:13:14] B20: Sicilian: Unusual White 2nd moves.} 8. O-O {[%emt 0:02:58] [#]} h5 $146 {[%emt 0:02:45]} ({Predecessor:} 8... Nf6 9. Be3 Qd7 10. Re1 Bxf3 11. Bxf3 h5 12. Na3 Ng4 13. Nc2 Nxe3 14. Nxe3 e6 15. Qe2 {1-0 (40) Grigoriev,S (2093)-Shafikova,G Ufa 2007}) 9. h3 {[%emt 0:02:17]} Bd7 {[%emt 0:01:45]} 10. Be3 {[%emt 0:01:00]} e5 {[%emt 0:06:08]} 11. Na3 {[%emt 0:01:23]} Nge7 {[%emt 0:05:04]} 12. Ng5 {[%emt 0:03:13]} (12. d4 $16 exd4 13. cxd4) 12... f6 {[%emt 0:00:49]} 13. fxe5 {[%emt 0:03:07]} Nxe5 {[%emt 0:03:46]} 14. Nf3 {[%emt 0:02:02]} ({White should try} 14. d4 $1 $14 fxg5 15. dxe5 Bxe5 16. Bxg5) 14... g5 {[%emt 0:08:29]} 15. d4 {[%emt 0:05:48]} Nxf3+ {[%emt 0:00:45]} 16. Qxf3 {[%emt 0:01:21]} g4 {[%emt 0:01:00]} 17. hxg4 {[%emt 0:00:49]} hxg4 {[%emt 0:00:08] [#]} 18. Qf2 $1 {[%emt 0:00:26]} Rh5 {[%emt 0:09:36]} (18... cxd4 $16 19. cxd4 (19. Bxd4 Ng6 $16) 19... Rc8) 19. dxc5 {[%emt 0:00:34]} dxc5 {[%emt 0:00:22]} (19... Ng6 $142 20. cxd6 Qxd6) 20. Bf4 {[%emt 0:00:29]} Qd8 {[%emt 0:04:05]} 21. Nc4 {[%emt 0:00:30]} Nc8 {[%emt 0:01:16]} 22. Rad1 {[%emt 0:03:22]} b5 {[%emt 0:00:43]} 23. e5 {[%emt 0:00:55]} bxc4 {[%emt 0:00:55]} 24. e6 {[%emt 0:01:10]} Nb6 {[%emt 0:00:28]} 25. exd7+ {[%emt 0:00:15]} Nxd7 {[%emt 0:00:06]} 26. Qe2+ {[%emt 0:00:26]} Kf7 {[%emt 0:01:12]} 27. Qxg4 {[%emt 0:00:17] Double Attack} 1-0

[Event "SVK Amateur-ch 2020"]
[Site "Topolcany"]
[Date "2020.07.13"]
[Round "6.12"]
[White "Tropp, Oliver"]
[Black "Takacs, Laszlo"]
[Result "0-1"]
[ECO "A08"]
[WhiteElo "2077"]
[BlackElo "2185"]
[Annotator "RC"]
[PlyCount "106"]
[EventDate "2020.07.10"]
[EventType "swiss"]
[EventCountry "SVK"]
[SourceTitle "playchess.com"]
[Source "ChessBase"]
[SourceQuality "1"]
[TimeControl "3600+30"]

1. Nf3 {[%emt 0:00:00]} d5 {[%emt 0:03:08]} 2. g3 {[%emt 0:00:03]} c5 {[%emt 0:00:53]} 3. Bg2 {[%emt 0:00:14]} Nc6 {[%emt 0:00:09]} 4. d4 {[%emt 0:02:00]} e6 {[%emt 0:00:45]} 5. O-O {[%emt 0:00:53]} Nf6 {[%emt 0:00:08]} 6. c4 {[%emt 0:01:05]} Be7 {[%emt 0:00:52]} 7. cxd5 {[%emt 0:00:36]} exd5 {[%emt 0:00:09]} 8. dxc5 {[%emt 0:01:07]} Bxc5 {[%emt 0:00:12]} 9. a3 {[%emt 0:00:57]} a6 {[%emt 0:01:43]} 10. b4 {[%emt 0:00:39]} Be7 {[%emt 0:00:09]} 11. Bb2 {[%emt 0:00:41]} O-O {[%emt 0:00:12]} 12. Nbd2 {[%emt 0:02:53]} Bg4 {[%emt 0:01:15]} 13. h3 {[%emt 0:13:17]} Bh5 {[%emt 0:00:09]} 14. Nd4 {[%emt 0:07:09]} Re8 {[%emt 0:01:51]} 15. Nf5 {[%emt 0:05:36]} Bf8 {[%emt 0:05:03]} 16. Nf3 {[%emt 0:03:30]} Ne4 {[%emt 0:01:37]} 17. g4 {[%emt 0:02:00]} Bg6 {[%emt 0:00:15]} 18. Ne3 {[%emt 0:00:26]} Ng3 {[%emt 0:11:12]} 19. Re1 {[%emt 0:04:47]} Rxe3 {[%emt 0:07:55]} 20. fxe3 {[%emt 0:00:36]} a5 {[%emt 0:00:20]} 21. b5 {[%emt 0:03:36]} Qb6 {[%emt 0:02:04]} 22. Nd4 {[%emt 0:08:23]} Ne5 {[%emt 0:05:05]} 23. Bxd5 {[%emt 0:00:40]} Rd8 {[%emt 0:00:21]} 24. Bf3 {[%emt 0:03:27]} Ne4 {[%emt 0:06:44]} 25. Bg2 {[%emt 0:01:39]} Nc4 {[%emt 0:07:36]} 26. Bc1 {[%emt 0:00:01]} Qd6 {[%emt 0:04:20]} 27. Rf1 {[%emt 0:00:21]} Qe5 {[%emt 0:00:37]} 28. Rf4 {[%emt 0:01:48]} Bc5 {[%emt 0:02:16]} 29. Ra2 {[%emt 0:00:01]} Qxf4 {[%emt 0:02:06]} 30. exf4 {[%emt 0:00:26]} Rxd4 {[%emt 0:00:09]} 31. Qxd4 {[%emt 0:05:55]} Bxd4+ {[%emt 0:00:05]} 32. Kh2 {[%emt 0:00:18]} Nc3 {[%emt 0:00:55]} 33. Rd2 {[%emt 0:00:30]} Nxd2 {[%emt 0:00:59]} 34. Bxd2 Ne4 {[%emt 0:02:29]} 35. Bxa5 {[%emt 0:00:05]} f5 {[%emt 0:00:08]} 36. Bc7 {[%emt 0:00:57]} Nc3 {[%emt 0:03:12]} 37. b6 {[%emt 0:00:14]} Ne4 {[%emt 0:00:31]} 38. a4 {[%emt 0:00:35]} Bc3 {[%emt 0:00:20]} 39. e3 {[%emt 0:00:16]} Bd2 {[%emt 0:00:40]} 40. Bf1 {[%emt 0:01:00]} Bf7 {[%emt 0:00:40]} 41. gxf5 {[%emt 0:00:59]} Bd5 {[%emt 0:00:30]} 42. Be5 {[%emt 0:00:20]} Kf7 {[%emt 0:00:31]} 43. Bd4 {[%emt 0:00:19]} Nd6 {[%emt 0:00:24]} 44. Bd3 {[%emt 0:00:09]} Be4 {[%emt 0:00:07]} 45. Be2 {[%emt 0:01:15]} Nxf5 {[%emt 0:00:24]} 46. Bc4+ {[%emt 0:00:21]} Kg6 {[%emt 0:00:14]} 47. Be5 {[%emt 0:00:49]} Nxe3 {[%emt 0:00:16]} 48. Be2 {[%emt 0:00:27]} Nd5 {[%emt 0:00:45]} 49. f5+ {[%emt 0:00:20]} Bxf5 {[%emt 0:01:13]} 50. Bf3 {[%emt 0:00:10]} Be6 {[%emt 0:00:21]} 51. Be4+ {[%emt 0:00:03]} Kf7 {[%emt 0:00:10]} 52. Kg3 {[%emt 0:00:01]} Ba5 {[%emt 0:00:51]} 53. Bd4 {[%emt 0:00:32]} Bxb6 {[%emt 0:00:32]} 0-1

[Event "SVK Amateur-ch 2020"]
[Site "Topolcany"]
[Date "2020.07.13"]
[Round "6.12"]
[White "Bakalar, Jan"]
[Black "Slovak, Pavol"]
[Result "1-0"]
[ECO "C29"]
[WhiteElo "1896"]
[BlackElo "1618"]
[Annotator "NA"]
[PlyCount "29"]
[EventDate "2020.07.10"]
[EventType "swiss"]
[EventCountry "SVK"]
[SourceTitle "playchess.com"]
[Source "ChessBase"]
[SourceQuality "1"]
[TimeControl "3600+30"]

1. e4 {[%emt 0:00:00]} Nc6 {[%emt 0:08:08]} 2. Nc3 {[%emt 0:00:00]} Nf6 {[%emt 0:00:11]} 3. f4 {[%emt 0:00:39]} e5 {[%emt 0:00:08]} 4. fxe5 {[%emt 0:00:07]} Nxe5 {[%emt 0:00:10]} 5. d4 {[%emt 0:00:09]} Ng6 {[%emt 0:00:31]} 6. e5 {[%emt 0:00:08]} Ng8 {[%emt 0:00:30]} 7. Bc4 {[%emt 0:01:35]} Bb4 {[%emt 0:01:11]} 8. Nf3 {[%emt 0:01:26]} N8e7 {[%emt 0:01:18]} 9. O-O {[%emt 0:01:52]} O-O {[%emt 0:00:08]} 10. Ng5 {[%emt 0:01:17]} h6 {[%emt 0:00:25]} 11. Nxf7 {[%emt 0:00:42]} Rxf7 {[%emt 0:01:33]} 12. Rxf7 {[%emt 0:02:07]} Kh7 {[%emt 0:03:17] [#]} 13. Qh5 $1 {[%emt 0:02:11]} Ng8 {[%emt 0:01:09] [#]} 14. Bd3 {[%emt 0:00:41]} d5 {[%emt 0:02:17]} 15. Qxg6+ {[%emt 0:00:18]} 1-0

[Event "SVK Amateur-ch 2020"]
[Site "Topolcany"]
[Date "2020.07.13"]
[Round "6.13"]
[White "Galdik, Stefan"]
[Black "Ladnak, Marek"]
[Result "0-1"]
[ECO "D94"]
[WhiteElo "1583"]
[BlackElo "1887"]
[Annotator "NA"]
[PlyCount "85"]
[EventDate "2020.07.10"]
[EventType "swiss"]
[EventCountry "SVK"]
[SourceTitle "playchess.com"]
[Source "ChessBase"]
[SourceQuality "1"]
[TimeControl "3600+30"]

1. d4 {[%emt 0:00:00]} Nf6 {[%emt 0:00:00]} 2. c4 {[%emt 0:00:00]} g6 {[%emt 0:00:00]} 3. Nc3 {[%emt 0:00:00]} d5 {[%emt 0:00:05]} 4. e3 {[%emt 0:00:00]} Bg7 {[%emt 0:00:12]} 5. Nf3 {[%emt 0:00:00]} O-O {[%emt 0:00:21]} 6. Be2 {[%emt 0:00:03]} dxc4 {[%emt 0:02:25]} 7. Bxc4 {[%emt 0:00:03]} c5 {[%emt 0:00:12] D94: Grünfeld: 4 Nf3 Bg7 5 e3.} 8. O-O {[%emt 0:00:19]} Qa5 {[%emt 0:01:06] [#]} 9. Bd2 $146 {[%emt 0:03:25]} ({Predecessor:} 9. h3 Nbd7 10. Qe2 a6 {0-1 (10) Salmon,G-Tupper,A (1681) ICCF email 2018}) 9... Qc7 {[%emt 0:02:09]} (9... cxd4 $11 {remains equal.} 10. exd4 Nc6) 10. Be2 {[%emt 0:00:47]} cxd4 {[%emt 0:04:24]} 11. Nxd4 {[%emt 0:00:11]} e5 {[%emt 0:03:29]} 12. Ndb5 {[%emt 0:01:13]} Qe7 {[%emt 0:04:02]} 13. e4 {[%emt 0:04:47]} a6 {[%emt 0:00:33]} 14. Na3 {[%emt 0:00:26]} b5 {[%emt 0:06:40]} 15. Nc2 {[%emt 0:05:50]} Bb7 {[%emt 0:02:39]} 16. Bf3 {[%emt 0:00:01]} Rd8 {[%emt 0:08:23]} 17. Qe2 {[%emt 0:01:03]} Nbd7 {[%emt 0:07:56]} 18. Be3 {[%emt 0:06:53] [#]} Nc5 {[%emt 0:07:53]} (18... b4 $1 $17 {[%cal Rb4c3]} 19. Na4 a5) 19. Bxc5 {[%emt 0:00:50]} Qxc5 {[%emt 0:00:07]} 20. a3 {[%emt 0:00:44]} Rd6 {[%emt 0:02:25]} 21. Rfd1 {[%emt 0:01:05]} Rad8 {[%emt 0:01:37]} 22. Rxd6 {[%emt 0:00:12]} Rxd6 {[%emt 0:00:33]} 23. Rd1 {[%emt 0:00:17]} Bh6 {[%emt 0:02:08]} 24. Rd3 {[%emt 0:01:48]} Ne8 {[%emt 0:02:10]} 25. Qd1 {[%emt 0:01:25]} f5 {[%emt 0:01:58]} (25... Rxd3 $15 {keeps the upper hand.} 26. Qxd3 Bc1) 26. exf5 {[%emt 0:03:07] Discovered Attack} Bxf3 {[%emt 0:05:38]} (26... e4 {[%emt 0:05:38]}) (26... Rxd3 $16 {was necessary.} 27. Qxd3 Qd6 28. Qxd6 Nxd6) 27. Qxf3 {[%emt 0:11:11]} e4 {[%emt 0:02:26]} 28. Qxe4 {[%emt 0:01:45]} Nf6 {[%emt 0:00:30]} 29. Qe2 {[%emt 0:00:30]} Rxd3 {[%emt 0:00:30]} 30. Qxd3 {[%emt 0:00:30]} gxf5 {[%emt 0:00:30]} 31. h3 {[%emt 0:00:30]} Bc1 {[%emt 0:01:42]} 32. b4 {[%emt 0:17:42]} Qe5 {[%emt 0:00:27]} 33. Qg3+ {[%emt 0:00:30]} Qxg3 {[%emt 0:00:30]} 34. fxg3 {[%emt 0:00:30]} Bb2 {[%emt 0:00:30]} 35. Nd1 {[%emt 0:00:30]} Be5 {[%emt 0:00:30]} 36. Kf2 {[%emt 0:00:30]} Ne4+ {[%emt 0:00:30]} 37. Kf3 {[%emt 0:00:30]} Nxg3 {[%emt 0:00:30]} 38. Nde3 {[%emt 0:00:30]} Kf7 {[%emt 0:00:43]} 39. Nd5 {[%emt 0:02:13]} Ne4 {[%emt 0:00:30]} 40. Ke3 {[%emt 0:00:30]} Ke6 {[%emt 0:00:30]} 41. Kf3 {[%emt 0:00:30]} Bg7 $2 {[%emt 0:00:00]} ({Black should try} 41... Ng5+ $19 42. Ke2 Kxd5 43. Ne3+ Ke4) 42. Nce3 {[%emt 0:03:45]} Bh6 {[%emt 0:00:03]} 43. g4 $15 {[%emt 0:01:34]} (43. Nc7+ $11 Ke5 44. Nc2) 0-1

[Event "SVK Amateur-ch 2020"]
[Site "Topolcany"]
[Date "2020.07.13"]
[Round "6.14"]
[White "Tropp, Frantisek"]
[Black "Pejko, Otomar"]
[Result "1/2-1/2"]
[ECO "B02"]
[WhiteElo "2040"]
[BlackElo "2138"]
[Annotator "ChessBase"]
[PlyCount "66"]
[EventDate "2020.07.10"]
[EventType "swiss"]
[EventCountry "SVK"]
[SourceTitle "playchess.com"]
[Source "ChessBase"]
[SourceQuality "1"]
[TimeControl "3600+30"]

1. e4 {[%emt 0:00:00]} Nf6 {[%emt 0:00:00]} 2. d3 {[%emt 0:00:48]} e5 {[%emt 0:00:00]} 3. f4 {[%emt 0:03:04]} Nc6 {[%emt 0:03:20]} 4. Nf3 {[%emt 0:00:08]} d5 {[%emt 0:04:42]} 5. exd5 {[%emt 0:15:36]} Nxd5 {[%emt 0:08:21]} 6. Nxe5 {[%emt 0:05:30]} Qf6 {[%emt 0:09:03]} 7. Nxc6 {[%emt 0:02:08]} bxc6 {[%emt 0:00:12]} 8. Qf3 {[%emt 0:05:59]} Bc5 {[%emt 0:07:54]} 9. Nd2 {[%emt 0:07:44]} O-O {[%emt 0:15:13]} 10. Ne4 {[%emt 0:01:59]} Qe7 {[%emt 0:04:38]} 11. Kd1 {[%emt 0:02:34]} Re8 {[%emt 0:01:51]} 12. Bd2 {[%emt 0:05:24]} Rb8 {[%emt 0:00:10]} 13. Kc1 {[%emt 0:03:32]} Bb4 {[%emt 0:03:53]} 14. c3 {[%emt 0:01:05]} f5 {[%emt 0:00:25]} 15. cxb4 {[%emt 0:02:01]} fxe4 {[%emt 0:00:14]} 16. dxe4 {[%emt 0:01:22]} Nxb4 {[%emt 0:00:32]} 17. Bc4+ {[%emt 0:00:35]} Be6 {[%emt 0:00:10]} 18. Qc3 {[%emt 0:01:19]} Qf7 {[%emt 0:03:06]} 19. Bxe6 {[%emt 0:01:20]} Qxe6 {[%emt 0:00:02]} 20. Qb3 {[%emt 0:01:51]} Qxb3 {[%emt 0:00:18]} 21. axb3 {[%emt 0:00:30]} Rxe4 {[%emt 0:01:26]} 22. g3 {[%emt 0:02:49]} Rb7 {[%emt 0:02:01]} 23. Ra4 {[%emt 0:00:33]} c5 {[%emt 0:01:55]} 24. Bc3 {[%emt 0:00:42]} Re2 {[%emt 0:00:36]} 25. Rd1 {[%emt 0:00:30]} Nc6 {[%emt 0:01:23]} 26. Rc4 {[%emt 0:00:35]} Nd4 {[%emt 0:00:48]} 27. Bxd4 {[%emt 0:01:43]} cxd4 {[%emt 0:00:01]} 28. Rcxd4 {[%emt 0:00:17]} Rxh2 {[%emt 0:00:23]} 29. R4d3 {[%emt 0:00:10]} Rg2 {[%emt 0:00:17]} 30. R1d2 {[%emt 0:00:01]} Rg1+ {[%emt 0:00:25]} 31. Kc2 {[%emt 0:00:01]} h6 {[%emt 0:00:58]} 32. Rd1 {[%emt 0:01:56]} Rg2+ {[%emt 0:00:04]} 33. R1d2 {[%emt 0:00:23]} Rg1 {[%emt 0:00:01]} 1/2-1/2

[Event "SVK Amateur-ch 2020"]
[Site "Topolcany"]
[Date "2020.07.13"]
[Round "6.14"]
[White "Hlavac, Tomas"]
[Black "Salgovic, Simon"]
[Result "0-1"]
[ECO "B01"]
[WhiteElo "1349"]
[BlackElo "1877"]
[Annotator "NA"]
[PlyCount "108"]
[EventDate "2020.07.10"]
[EventType "swiss"]
[EventCountry "SVK"]
[SourceTitle "playchess.com"]
[Source "ChessBase"]
[SourceQuality "1"]
[TimeControl "3600+30"]

{[%evp 12,108,13,-18,0,-60,32767,3,12,10,14,32767,-12,-27,-14,-65,32767,32767,32767,32767,-76,-122,-114,-144,32767,32767,32767,32767,32767,-89,32767,32767,-161,-206,-165,-275,-212,-255,-188,-359,-399,32767,-790,-677,32767,-337,-164,-171,-113,-225,-125,-144,-114,-121,32767,32767,-94,-86,-111,-100,-80,-106,-50,32767,-28,-24,32767,-111,32767,32767,32767,32767,32767,-235,32767,32767,32767,32767,32767,32767,32767,32767,-290,-358,-277,-457,-508,-670,-1019,-1009,-521,-1812,-1737,-1955,-29979,-29981,-29985,-29993,-29993]} 1. e4 {[%emt 0:00:00]} d5 {[%emt 0:00:00]} 2. e5 {[%emt 0:00:00]} Bf5 {[%emt 0:00:23]} 3. d4 {[%emt 0:00:05]} e6 {[%emt 0:00:25]} 4. Nf3 {[%emt 0:00:30]} c5 {[%emt 0:00:35]} 5. c3 {[%emt 0:00:44]} Nc6 {[%emt 0:00:08]} 6. Be2 {[%emt 0:00:35] B01: Scandinavian Defence.} h6 {[%emt 0:04:44]} 7. Be3 {[%emt 0:01:26]} cxd4 {[%emt 0:02:27]} 8. cxd4 {[%emt 0:00:22] [#]} Bb4+ $146 {[%emt 0:00:43]} ({Predecessor:} 8... Nge7 9. Nc3 Ng6 10. a3 Nh4 11. O-O Nxf3+ 12. Bxf3 Be7 13. Ne2 O-O 14. Ng3 Bg6 {½-½ (34) Klimczok,N (1511)-Gadek,M (1857) Polanica Zdroj 2009}) 9. Nc3 {[%emt 0:00:33]} Nge7 {[%emt 0:00:25]} 10. O-O {[%emt 0:00:33]} O-O {[%emt 0:00:14]} 11. Qd2 {[%emt 0:00:53]} Bh7 {[%emt 0:00:53]} 12. g4 {[%emt 0:04:19]} Be4 {[%emt 0:12:47]} 13. a3 {[%emt 0:01:43]} Bxc3 {[%emt 0:04:11]} 14. bxc3 {[%emt 0:00:10]} Na5 {[%emt 0:03:09]} 15. Qb2 {[%emt 0:02:02]} Nc4 {[%emt 0:18:14]} 16. Bxc4 {[%emt 0:00:31]} (16. Qc1 $15) 16... dxc4 {[%emt 0:01:37]} 17. Nd2 {[%emt 0:00:39]} Bd3 {[%emt 0:01:53]} 18. Rfe1 {[%emt 0:02:18]} Nd5 {[%emt 0:02:46]} 19. Nf3 {[%emt 0:02:17]} Be4 {[%emt 0:02:12]} 20. Nd2 {[%emt 0:03:03]} Bd3 {[%emt 0:00:25]} 21. Nf3 {[%emt 0:02:25]} Rc8 {[%emt 0:02:15]} 22. Rac1 {[%emt 0:02:34]} (22. a4 $17 {might work better.}) 22... Qe7 {[%emt 0:00:52]} 23. h4 {[%emt 0:04:40]} (23. a4 $142) 23... Rc6 {[%emt 0:02:09]} 24. h5 {[%emt 0:03:51]} Kh7 {[%emt 0:04:36]} 25. Kg2 $2 {[%emt 0:04:00]} (25. a4) 25... Be4 {[%emt 0:02:21]} 26. Rh1 {[%emt 0:03:01]} Nxe3+ {[%emt 0:00:32]} 27. fxe3 {[%emt 0:00:13]} Qg5 {[%emt 0:00:18]} 28. Kg3 {[%emt 0:06:19] [#]} Qxe3 {[%emt 0:00:41]} (28... Bxf3 $142 $1 29. Kxf3 f5) 29. Rhf1 {[%emt 0:00:16]} Rb6 {[%emt 0:01:09]} 30. Qg2 {[%emt 0:01:05]} (30. Qd2 $17 Qxd2 31. Nxd2) 30... Bxf3 {[%emt 0:00:21]} (30... f5 $19 31. Qd2 f4+ 32. Kh3 Kg8 33. Qxe3 fxe3) 31. Qxf3 {[%emt 0:01:25]} Qxf3+ {[%emt 0:00:09]} 32. Rxf3 {[%emt 0:00:25]} Rb3 {[%emt 0:00:19]} 33. Ra1 {[%emt 0:00:33]} Kg8 {[%emt 0:00:54]} 34. a4 {[%emt 0:00:35]} a5 {[%emt 0:00:47]} 35. Kf4 {[%emt 0:00:35]} f6 {[%emt 0:01:13]} 36. Re3 {[%emt 0:00:56]} Kf7 {[%emt 0:00:30]} 37. Ke4 {[%emt 0:02:06]} Rd8 {[%emt 0:00:34]} 38. Rf3 {[%emt 0:01:23]} Ke7 {[%emt 0:00:12]} 39. Kf4 {[%emt 0:02:22]} ({White should play} 39. Raf1 $15) 39... Rb2 {[%emt 0:00:35]} 40. Ke4 {[%emt 0:02:31]} Re2+ {[%emt 0:00:03]} 41. Kf4 {[%emt 0:02:29]} fxe5+ {[%emt 0:00:05]} 42. dxe5 {[%emt 0:01:15]} Rf8+ {[%emt 0:00:38]} 43. Kg3 {[%emt 0:00:09]} Rxf3+ {[%emt 0:00:05]} 44. Kxf3 {[%emt 0:00:05]} Rc2 {[%emt 0:01:20]} 45. Rb1 {[%emt 0:00:41]} Rxc3+ {[%emt 0:00:11]} 46. Ke4 {[%emt 0:00:28]} Rb3 {[%emt 0:00:07]} 47. Rc1 {[%emt 0:00:51]} Rb4 {[%emt 0:00:56]} 48. Kd4 {[%emt 0:04:55]} Rxa4 {[%emt 0:00:23]} 49. Kc5 {[%emt 0:00:35]} Rb4 {[%emt 0:00:16]} 50. Ra1 {[%emt 0:00:46]} b6+ {[%emt 0:01:02]} 51. Kc6 {[%emt 0:00:47]} (51. Kd4 $142) 51... c3 {[%emt 0:00:23]} 52. Rd1 {[%emt 0:00:39]} c2 {[%emt 0:00:18]} 53. Rd7+ {[%emt 0:00:52]} Ke8 {[%emt 0:00:22]} 54. Kd6 {[%emt 0:04:03]} Rd4+ {[%emt 0:00:06]} 0-1